[Event "Gibraltar Challengers B 2020"]
[Site "Caleta"]
[Date "2020.01.29"]
[Round "5.39"]
[White "O`neil, Jim"]
[Black "Kurzok, Zenon"]
[Result "1-0"]
[ECO "B01"]
[WhiteElo "1870"]
[BlackElo "1702"]
[Annotator "NA RC"]
[PlyCount "75"]
[EventDate "2020.01.20"]
[EventType "swiss"]
[EventCountry "GGB"]
[SourceTitle "playchess.com"]
[Source "ChessBase"]
[SourceQuality "1"]
[TimeControl "6600+10"]

1. e4 {[%emt 0:00:00]} d5 {[%emt 0:00:07]} 2. exd5 {[%emt 0:00:12]} Nf6 {[%emt 0:00:05]} 3. Bc4 {[%emt 0:01:04]} Bg4 {[%emt 0:00:48]} 4. f3 {[%emt 0:01:08]} Bf5 {[%emt 0:00:05]} 5. Nc3 {[%emt 0:01:15]} c6 {[%emt 0:00:51]} 6. dxc6 {[%emt 0:02:17]} Nxc6 {[%emt 0:00:06]} 7. Nge2 {[%emt 0:01:31]} Qb6 {[%emt 0:00:29] B01: Scandinavian Defence} 8. d3 {[%emt 0:06:32]} e6 {[%emt 0:01:05]} (8... O-O-O 9. Bd2 Ne5 10. Ng3 Nxc4 11. Nxf5 Qe6+ 12. Qe2 Nxd2 {½-½ (13) Chapman,M (1937)-Chandler,C (2281) Fareham 2019}) 9. Bd2 {[%emt 0:07:17]} Be7 $146 {[%emt 0:05:19]} ({Predecessor:} 9... Rd8 10. Na4 Qc7 11. Nac3 Bc5 12. Ng3 Bg6 13. Nce4 Nxe4 14. Nxe4 Bb6 15. Bc3 {1-0 (42) Reinemann,G (1789)-Brandt,J (1601) Binz 2015}) 10. Na4 {[%emt 0:06:55]} Qd8 {[%emt 0:05:35]} 11. O-O {[%emt 0:03:11]} O-O {[%emt 0:00:06]} 12. Bb3 {[%emt 0:03:39]} Rc8 {[%emt 0:05:07]} 13. Ng3 {[%emt 0:02:43]} Bg6 {[%emt 0:00:20]} 14. Nc3 {[%emt 0:02:44]} Bc5+ {[%emt 0:07:04]} 15. Kh1 {[%emt 0:00:06]} Nd4 {[%emt 0:01:42]} 16. Nce4 {[%emt 0:02:25]} Bb6 {[%emt 0:00:58]} 17. Bb4 {[%emt 0:15:06]} Nxb3 {[%emt 0:02:52]} 18. axb3 {[%emt 0:00:25]} Nd5 $1 {[%emt 0:00:40]} 19. Bxf8 {[%emt 0:09:31]} Ne3 {[%emt 0:00:21]} 20. Qb1 {[%emt 0:04:10]} Nxf1 {[%emt 0:02:35]} 21. Qxf1 {[%emt 0:00:48]} Qxf8 {[%emt 0:00:10]} 22. c3 {[%emt 0:00:43]} Qd8 {[%emt 0:18:01]} 23. Qe2 {[%emt 0:04:03]} a6 {[%emt 0:00:58]} 24. d4 {[%emt 0:00:40]} h5 {[%emt 0:11:13]} 25. b4 {[%emt 0:01:28]} h4 {[%emt 0:03:31]} 26. Nf1 {[%emt 0:00:28]} Bc7 {[%emt 0:13:50]} 27. Nc5 {[%emt 0:06:13]} Rb8 {[%emt 0:04:26]} 28. Re1 {[%emt 0:02:08]} Qg5 {[%emt 0:00:36]} 29. Ne4 {[%emt 0:04:40]} Qh5 {[%emt 0:06:17]} 30. Qf2 {[%emt 0:01:45]} ({White should play} 30. Ne3 $16) 30... h3 {[%emt 0:06:11]} 31. g4 {[%emt 0:00:26]} Qd5 {[%emt 0:00:59]} 32. Nfd2 {[%emt 0:00:30]} (32. Ne3 $16 Qb5 33. Qf1) 32... Qa2 {[%emt 0:01:11]} 33. Nf1 {[%emt 0:02:53]} Bf4 {[%emt 0:00:26]} 34. Nfg3 {[%emt 0:00:50]} Re8 {[%emt 0:01:00]} 35. Nh5 $14 {[%emt 0:01:45]} (35. Ne2 $16 Bb8 36. Nc1) 35... Bb8 {[%emt 0:01:31]} 36. f4 {[%emt 0:00:26]} Qd5 {[%emt 0:01:30]} 37. Qf3 {[%emt 0:04:22]} f5 38. Nef6+ {[%emt 0:00:10]} 1-0

[Event "Gibraltar Challengers B 2020"]
[Site "Caleta"]
[Date "2020.01.29"]
[Round "5.41"]
[White "Nergard, Ole-Kristian"]
[Black "Lafour, Jephte"]
[Result "0-1"]
[ECO "B01"]
[WhiteElo "1667"]
[BlackElo "1690"]
[Annotator "NA RC"]
[PlyCount "119"]
[EventDate "2020.01.20"]
[EventType "swiss"]
[EventCountry "GGB"]
[SourceTitle "playchess.com"]
[Source "ChessBase"]
[SourceQuality "1"]
[TimeControl "6600+10"]

1. e4 {[%emt 0:05:07]} d5 {[%emt 0:00:00]} 2. exd5 {[%emt 0:01:32]} Qxd5 {[%emt 0:00:16]} 3. d4 {[%emt 0:00:14]} Nf6 {[%emt 0:01:54]} 4. c4 {[%emt 0:00:56]} Qd8 {[%emt 0:00:05]} 5. Nf3 {[%emt 0:00:42]} Bg4 {[%emt 0:00:03]} 6. Be2 {[%emt 0:01:07]} e6 {[%emt 0:00:10]} 7. O-O {[%emt 0:01:05]} Be7 {[%emt 0:00:09]} 8. Nc3 {[%emt 0:03:10]} c6 {[%emt 0:00:46]} 9. Be3 {[%emt 0:01:02]} O-O {[%emt 0:00:33]} 10. h3 {[%emt 0:01:44]} Bf5 {[%emt 0:01:39]} 11. Nh4 {[%emt 0:00:57]} Be4 {[%emt 0:02:19]} 12. Nxe4 {[%emt 0:00:41]} Nxe4 {[%emt 0:00:12]} 13. Nf3 {[%emt 0:00:21]} Nd7 {[%emt 0:00:52]} 14. Qc2 {[%emt 0:00:33]} Nef6 {[%emt 0:02:19]} 15. Rfd1 {[%emt 0:00:38]} Rc8 {[%emt 0:02:00]} 16. Ne5 {[%emt 0:12:27]} Qc7 {[%emt 0:07:36]} 17. Nxd7 {[%emt 0:01:30]} Qxd7 {[%emt 0:01:55]} 18. Bf3 {[%emt 0:00:20]} Rfd8 {[%emt 0:01:18]} 19. a3 {[%emt 0:00:42]} a5 {[%emt 0:00:55]} 20. Qa4 {[%emt 0:02:49]} Ra8 {[%emt 0:01:15]} 21. Rac1 {[%emt 0:03:36]} Rdc8 {[%emt 0:03:09]} 22. d5 {[%emt 0:07:30]} exd5 {[%emt 0:04:33]} 23. cxd5 {[%emt 0:03:14]} b5 {[%emt 0:05:41]} 24. dxc6 {[%emt 0:01:35]} bxa4 {[%emt 0:00:22]} 25. cxd7 {[%emt 0:00:04]} Rxc1 {[%emt 0:00:28]} 26. Bxc1 {[%emt 0:02:44]} Rd8 {[%emt 0:01:18]} 27. Bc6 {[%emt 0:00:31]} Bc5 {[%emt 0:00:36]} 28. Bf4 {[%emt 0:08:26]} Bb6 {[%emt 0:01:16]} 29. Bxa4 {[%emt 0:13:11]} Ne4 {[%emt 0:03:09]} 30. Be3 {[%emt 0:03:09]} Bc7 {[%emt 0:01:00]} 31. Rc1 {[%emt 0:00:44]} Be5 {[%emt 0:03:26]} 32. Bb6 {[%emt 0:01:09]} Rf8 {[%emt 0:03:05]} 33. Rc8 {[%emt 0:01:19]} Bf6 {[%emt 0:00:18]} 34. d8=Q {[%emt 0:02:04]} Bxd8 {[%emt 0:00:23]} 35. Rxd8 {[%emt 0:00:03]} Rxd8 {[%emt 0:01:40]} 36. Bxd8 {[%emt 0:00:03]} Nc5 {[%emt 0:00:08]} 37. Bc2 {[%emt 0:01:14]} a4 {[%emt 0:00:26]} 38. Be7 {[%emt 0:00:25]} Nd7 {[%emt 0:00:46]} 39. Bxa4 {[%emt 0:00:19]} Nb6 {[%emt 0:00:03]} 40. Bc6 {[%emt 0:01:19]} Nc4 {[%emt 0:00:53]} 41. b3 {[%emt 0:00:49]} Ne5 {[%emt 0:00:57]} 42. Bd5 {[%emt 0:00:15]} Nd7 {[%emt 0:00:20]} 43. a4 {[%emt 0:00:56]} Nb6 {[%emt 0:00:12]} 44. Bc6 {[%emt 0:00:55]} f6 {[%emt 0:00:18]} 45. a5 {[%emt 0:00:11]} Nc8 {[%emt 0:00:05]} 46. Bd5+ {[%emt 0:00:43]} Kh8 {[%emt 0:00:04]} 47. Bc5 {[%emt 0:00:17]} g6 {[%emt 0:00:31]} 48. Bb7 {[%emt 0:00:24]} Ne7 {[%emt 0:00:42]} 49. a6 {[%emt 0:00:32]} Nf5 {[%emt 0:00:49]} 50. a7 {[%emt 0:00:18]} Kg7 {[%emt 0:00:04]} 51. a8=Q {[%emt 0:00:16]} Kh6 {[%emt 0:00:35]} 52. g4 {[%emt 0:00:00]} Nh4 {[%emt 0:00:14]} 53. Be3+ {[%emt 0:00:12]} g5 {[%emt 0:00:40]} 54. Qf8+ {[%emt 0:00:01]} Kg6 {[%emt 0:00:15]} 55. Be4+ {[%emt 0:00:54]} f5 {[%emt 0:00:12]} 56. Bxf5+ {[%emt 0:00:27]} Nxf5 {[%emt 0:00:10]} 57. Qxf5+ {[%emt 0:00:10]} Kg7 {[%emt 0:00:13]} 58. Bd4+ {[%emt 0:00:13]} Kg8 {[%emt 0:00:04]} 59. Qf6 {[%emt 0:00:22]} h5 {[%emt 0:00:15]} 60. Qg7# {[%emt 0:00:02]} 0-1

[Event "Gibraltar Challengers B 2020"]
[Site "Caleta"]
[Date "2020.01.29"]
[Round "5.42"]
[White "Erdogan, Hassan"]
[Black "Johnsen, Sylvia"]
[Result "1/2-1/2"]
[ECO "D00"]
[WhiteElo "1830"]
[BlackElo "1902"]
[Annotator "NA RC"]
[PlyCount "70"]
[EventDate "2020.01.20"]
[EventType "swiss"]
[EventCountry "GGB"]
[SourceTitle "playchess.com"]
[Source "ChessBase"]
[SourceQuality "1"]
[TimeControl "6600+10"]

1. d4 {[%emt 0:00:00]} d5 {[%emt 0:00:00]} 2. Bf4 {[%emt 0:00:02]} Nf6 {[%emt 0:01:07]} 3. e3 {[%emt 0:00:02]} Bf5 {[%emt 0:00:06]} 4. Bd3 {[%emt 0:00:10]} Bg6 {[%emt 0:01:08]} (4... Bxd3 5. Qxd3 e6 6. Nf3 c5 7. dxc5 Na6 8. c6 Qa5+ 9. Nbd2 bxc6 10. O-O Nc5 11. Qe2 Qb6 12. Nb3 Be7 13. Nxc5 Bxc5 14. c4 {1-0 (50) Zhao,J (2634)-Wei,Y (2700) China 2016}) 5. h3 {[%emt 0:00:17]} e6 {[%emt 0:00:24]} 6. Nf3 {[%emt 0:00:22] D00: 1 d4 d5: Unusual lines} Bd6 {[%emt 0:00:45]} 7. Ne5 {[%emt 0:04:31]} O-O {[%emt 0:00:36]} 8. O-O {[%emt 0:01:41]} Nc6 $146 {[%emt 0:00:26]} ({Predecessor:} 8... c5 9. c3 Nc6 10. Nxg6 hxg6 11. Bxd6 Qxd6 12. f4 Rab8 13. Nd2 b5 {½-½ (43) Byfield,G (2027)-Lorne,M (2103) Kingston 2015}) 9. c3 {[%emt 0:01:06]} Nd7 {[%emt 0:02:10]} 10. Nxg6 {[%emt 0:08:25]} fxg6 {[%emt 0:00:12]} 11. Bxd6 {[%emt 0:00:21]} cxd6 {[%emt 0:00:05]} 12. Nd2 {[%emt 0:02:22]} Kh8 {[%emt 0:01:06]} 13. e4 {[%emt 0:02:06]} Nf6 {[%emt 0:01:54]} 14. Qe2 {[%emt 0:07:45]} e5 {[%emt 0:00:48]} 15. dxe5 {[%emt 0:03:36]} Nxe5 {[%emt 0:00:40]} 16. Bc2 {[%emt 0:01:25]} Qb6 {[%emt 0:01:35]} (16... Nh5 $5 {[%cal Rh5f4]} 17. Qe3 (17. exd5 Nf4 $11 {[%mdl 64] Double Attack}) 17... Nf4 $11) 17. Nb3 {[%emt 0:19:07]} Rae8 $1 {[%emt 0:01:34]} ({Much worse is} 17... Nxe4 18. Bxe4 dxe4 19. Qxe4 $11) 18. exd5 {[%emt 0:00:28]} Nxd5 {[%emt 0:00:33]} 19. Qd2 {[%emt 0:00:51]} (19. Rfe1 $15) 19... Nf4 {[%emt 0:00:23]} 20. Nd4 {[%emt 0:04:34]} Qxb2 {[%emt 0:02:24]} 21. Rab1 {[%emt 0:00:36]} (21. Rfb1 $17 {is a better defense.} Qa3 22. Re1) 21... Qxa2 {[%emt 0:02:15]} 22. g3 {[%emt 0:21:34]} Ne6 {[%emt 0:05:54]} 23. f4 {[%emt 0:00:57]} Nc4 {[%emt 0:02:52]} 24. Qc1 {[%emt 0:04:03]} Nxd4 {[%emt 0:01:47]} 25. cxd4 {[%emt 0:00:02]} Ne3 {[%emt 0:06:55]} 26. Rf2 {[%emt 0:00:02]} Qd5 {[%emt 0:01:46]} 27. Ba4 {[%emt 0:04:19]} Re4 {[%emt 0:02:33]} 28. Qc7 $2 {[%emt 0:02:17]} (28. Qc3 {might work better.}) 28... Qxd4 {[%emt 0:02:40]} 29. Rxb7 $19 {[%emt 0:03:55]} Qa1+ {[%emt 0:00:48]} 30. Kh2 {[%emt 0:00:24]} Rxa4 {[%emt 0:00:43]} 31. Rfb2 {[%emt 0:01:08]} Nf1+ {[%emt 0:07:59]} 32. Kg2 {[%emt 0:00:36]} Ne3+ {[%emt 0:00:16]} 33. Kh2 {[%emt 0:00:15]} Nf1+ {[%emt 0:01:16]} 34. Kg2 {[%emt 0:00:02]} Ne3+ {[%emt 0:00:28]} 35. Kh2 {[%emt 0:00:02]} Nf1+ {[%emt 0:00:03]} 1/2-1/2